fUST/lending_fUST_20240619
["ID","MTS","AMOUNT","RATE_DAILY","PERIOD"]
[329844366,1718741452850,-153.0,0.00018715,2]
[329844367,1718741452859,-153.0,0.00018715,2]
[329844368,1718741452868,-153.0,0.00018715,2]
[329844369,1718741452877,-338.4,0.00018837,2]
[329844370,1718741452886,-500.0,0.00018902,2]
[329844371,1718741452895,-5947.62,0.00018903,2]
[329844372,1718741452905,-500.0,0.00018904,2]
[329844373,1718741452914,-500.0,0.00018904,2]
[329844374,1718741452924,-405.17079516,0.00018904,2]
[329844375,1718741452935,-500.0,0.00018904,2]
[329844376,1718741452945,-8763.3,0.00018904,2]
[329844377,1718741452954,-727.76,0.00018904,2]
[329844378,1718741452964,-500.0,0.00018904,2]
[329844379,1718741452973,-500.0,0.00018904,2]
[329844380,1718741452982,-1316.69,0.00018904,2]
[329844381,1718741453075,-1716.67,0.00018904,2]
[329844382,1718741453086,-500.0,0.00018904,2]
[329844383,1718741453096,-500.0,0.00018904,2]
[329844384,1718741453106,-500.0,0.00018904,2]
[329844385,1718741453120,-500.0,0.00018904,2]
[329844386,1718741453129,-2132.78,0.00018904,2]
[329844387,1718741453139,-853.66,0.00018904,2]
[329844388,1718741453148,-369.46383112,0.00018904,2]
[329844389,1718741453158,-500.0,0.00018904,2]
[329844390,1718741453167,-500.0,0.00018904,2]
[329844391,1718741453176,-3617.31,0.00018904,2]
[329844392,1718741453185,-845.56,0.00018904,2]
[329844393,1718741453195,-500.0,0.00018999,2]
[329844394,1718741453206,-5921.46835235,0.00019,2]
[329844395,1718741453216,-1000.0,0.00019,19]
[329844396,1718741453226,-2643.70052374,0.00019095,2]
[329844397,1718741453235,-886.91118279,0.00019095,2]
[329844398,1718741453244,-1769.06042319,0.00019095,2]
[329844399,1718741453254,-334.895612,0.00019096,2]
[329844400,1718741453263,-1750.0,0.00019121,2]
[329844401,1718741453273,-560.18359382,0.00019177,2]
[329844402,1718741453282,-5947.62,0.00019177,2]
[329844403,1718741453298,-500.0,0.00019178,2]
[329844404,1718741453308,-500.0,0.00019178,2]
[329844405,1718741453317,-500.0,0.00019178,2]
[329844406,1718741453326,-8763.3,0.00019178,2]
[329844407,1718741453335,-727.76,0.00019178,2]
[329844408,1718741453344,-553.17,0.00019178,2]
[329844409,1718741453353,-500.0,0.00019178,2]
[329844410,1718741453363,-1316.69,0.00019178,2]
[329844411,1718741453371,-1716.67,0.00019178,2]
[329844412,1718741453381,-190.77,0.00019178,2]
[329844413,1718741453391,-500.0,0.00019178,2]
[329844414,1718741453399,-500.0,0.00019178,2]
[329844415,1718741453408,-315.24,0.00019178,2]
[329844416,1718741453418,-2132.78,0.00019178,2]
[329844417,1718741453427,-853.66,0.00019178,2]
[329844418,1718741453437,-500.0,0.00019178,2]
[329844419,1718741453446,-500.0,0.00019178,2]
[329844420,1718741453455,-3617.31,0.00019178,2]
[329844421,1718741453465,-845.56,0.00019178,2]
[329844422,1718741453474,-165.527653,0.00019178,2]
[329844423,1718741453483,-600.0,0.000192,2]
[329844424,1718741453493,-600.0,0.000194,2]
[329844425,1718741453502,-5947.62,0.00019451,2]
[329844426,1718741453511,-642.56,0.00019452,2]
[329844427,1718741453521,-500.0,0.00019452,2]
[329844428,1718741453530,-500.0,0.00019452,2]
[329844429,1718741453543,-8763.3,0.00019452,2]
[329844430,1718741453552,-727.76,0.00019452,2]
[329844431,1718741453561,-209.62,0.00019452,2]
[329844432,1718741453571,-1316.69,0.00019452,2]
[329844433,1718741453581,-1716.67,0.00019452,2]
[329844434,1718741453590,-500.0,0.00019452,2]
[329844435,1718741453599,-500.0,0.00019452,2]
[329844436,1718741453609,-2132.78,0.00019452,2]
[329844437,1718741453619,-853.66,0.00019452,2]
[329844438,1718741453628,-500.0,0.00019452,2]
[329844439,1718741453638,-3617.31,0.00019452,2]
[329844440,1718741453648,-500.0,0.00019487,2]
[329844441,1718741453657,-338.4,0.000195,2]
[329844442,1718741453667,-537.2,0.00019528,2]
[329844443,1718741453676,-600.0,0.000196,2]
[329844444,1718741453687,-500.0,0.00019725,2]
[329844445,1718741453696,-5947.62,0.00019725,2]
[329844446,1718741453706,-500.0,0.00019726,2]
[329844447,1718741453715,-500.0,0.00019726,2]
[329844448,1718741453725,-8763.3,0.00019726,2]
[329844449,1718741453734,-727.76,0.00019726,2]
[329844450,1718741453743,-1316.69,0.00019726,2]
[329844451,1718741453753,-1716.67,0.00019726,2]
[329844452,1718741453762,-500.0,0.00019726,2]
[329844453,1718741453771,-301.73,0.00019726,2]
[329844454,1718741453781,-2132.78,0.00019726,2]
[329844455,1718741453793,-853.66,0.00019726,2]
[329844456,1718741453802,-500.0,0.00019726,2]
[329844457,1718741453811,-41784.55580357,0.000199,2]
[329844458,1718741453820,-3093.52712474,0.00019928,2]
[329844459,1718741453830,-7924.74626995,0.00019998,2]
[329844460,1718741453839,-3346.93090985,0.00019999,2]
[329844461,1718741453849,-500.0,0.00019999,2]
[329844462,1718741453858,-500.0,0.00019999,2]
[329844463,1718741453867,-5947.62,0.00019999,2]
[329844464,1718741453877,-31035.91897199,0.0002,2]
[329844465,1718741453887,-2306.79286963,0.0002,2]
[329844466,1718741453897,-160.0,0.0002,2]
[329844467,1718741453906,-531.00284963,0.0002,2]
[329844468,1718741453916,-531.0028496,0.0002,2]
[329844469,1718741453926,-531.0028496,0.0002,2]
[329844470,1718741453935,-531.0028496,0.0002,2]
[329844471,1718741453945,-531.0028496,0.0002,2]
[329844472,1718741453954,-531.0028496,0.0002,2]
[329844473,1718741453963,-531.0028496,0.0002,2]
[329844474,1718741453973,-531.0028496,0.0002,2]
[329844475,1718741453982,-531.0028496,0.0002,2]
[329844476,1718741453990,-531.0028496,0.0002,2]
[329844477,1718741454000,-1116.29745396,0.0002,2]
[329844478,1718741454010,-1034.75557184,0.0002,2]
[329844479,1718741454021,-2000.0,0.0002,2]
[329844480,1718741454031,-292.71417926,0.0002,2]
[329844481,1718741454044,-1000.0,0.0002,5]
[329844482,1718741454053,-6728.18024716,0.0002,15]
[329844483,1718741454062,-500.0,0.0002,2]
[329844484,1718741454071,-150.0,0.0002,2]
[329844485,1718741454080,-500.0,0.0002,2]
[329844486,1718741454089,-7696.97688491,0.0002,2]
[329844487,1718741454184,-1066.32311509,0.0002,2]
[329844488,1718741454194,-727.76,0.0002,2]
[329844489,1718741454205,-208.65750809,0.0002,2]
[329844801,1718742336163,-565.8163786,0.00015506,2]
[329844802,1718742336184,-596.0422309,0.00015575,2]
[329844803,1718742336204,-284.87341226,0.00016338,2]
[329844804,1718742336224,-1424.2669418,0.00016434,4]
[329844810,1718742439167,-558.8571605,0.00015417,2]
[329844811,1718742439188,-3123.2011782,0.00015574,4]
[329844812,1718742439214,-572.7962338,0.00015575,2]
[329844813,1718742439236,-862.63014294,0.00016338,2]
[329844814,1718742439257,-300.0,0.00016435,2]
[329844815,1718742439277,-282.79394345,0.00016436,2]
[329844816,1718742439298,-926.32065947,0.00016436,2]
[329844817,1718742439318,-870.48607649,0.00016436,2]
[329844818,1718742439338,-1128.34771906,0.00016436,2]
[329844819,1718742439358,-3473.20490066,0.00016437,2]
[329844820,1718742442105,-1215.90317912,0.00016437,2]
[329844821,1718742444103,-2265.08369195,0.00016437,2]
[329844822,1718742444127,-500.0,0.00016438,2]
[329844823,1718742444147,-500.0,0.00016438,2]
[329844824,1718742444168,-500.0,0.00016438,2]
[329844825,1718742444189,-453.00672091,0.00016438,2]
[329844826,1718742444213,-500.0,0.00016438,2]
[329844827,1718742444234,-500.0,0.00016438,2]
[329844828,1718742444255,-500.0,0.00016438,2]
[329844829,1718742444275,-500.0,0.00016438,2]
[329844830,1718742444296,-97.27699797,0.00016438,2]
[329844831,1718742550120,-183.39,0.00015721,2]
[329844832,1718742562114,-163.8685269,0.00015721,2]
[329844833,1718742562136,-3128.3688431,0.00015789,2]
[329844935,1718742637890,-754.80137509,0.00016338,2]
[329844937,1718742637900,-1653.09096302,0.00016437,4]
[329844938,1718742637910,-500.0,0.00016438,2]
[329844939,1718742637920,-500.0,0.00016438,2]
[329844940,1718742637931,-500.0,0.00016438,2]
[329844942,1718742637940,-500.0,0.00016438,2]
[329844944,1718742637950,-500.0,0.00016438,2]
[329844946,1718742637959,-108.35097529,0.00016438,2]
[329844948,1718742637971,-391.64902471,0.00016438,2]
[329844950,1718742637980,-500.0,0.00016438,2]
[329844952,1718742637990,-500.0,0.00016438,2]
[329844953,1718742638000,-500.0,0.00016438,2]
[329844954,1718742638009,-500.0,0.00016438,2]
[329844956,1718742638019,-500.0,0.00016438,2]
[329844957,1718742638028,-504.18457548,0.00016438,2]
[329844959,1718742638037,-500.0,0.00016438,2]
[329844961,1718742638047,-500.0,0.00016438,2]
[329844962,1718742638057,-500.0,0.00016438,2]
[329844964,1718742638067,-500.0,0.00016438,2]
[329844966,1718742638076,-500.0,0.00016438,2]
[329844968,1718742638086,-500.0,0.00016438,2]
[329844970,1718742638096,-500.0,0.00016438,2]
[329844972,1718742638105,-500.0,0.00016438,2]
[329844973,1718742638115,-500.0,0.00016438,2]
[329844974,1718742638124,-500.0,0.00016438,2]
[329844975,1718742638133,-500.0,0.00016438,2]
[329844976,1718742638142,-500.0,0.00016438,2]
[329844977,1718742638151,-504.44333306,0.00016438,2]
[329844978,1718742638160,-500.0,0.00016438,2]
[329844979,1718742638170,-500.0,0.00016438,2]
[329844980,1718742638179,-500.0,0.00016438,2]
[329844981,1718742638188,-552.76721272,0.00016438,2]
[329844982,1718742638197,-500.0,0.00016438,2]
[329844983,1718742638206,-500.0,0.00016438,2]
[329844984,1718742638215,-500.0,0.00016438,2]
[329844985,1718742638225,-500.0,0.00016438,2]
[329844986,1718742638234,-516.25205956,0.00016438,2]
[329844987,1718742638243,-500.0,0.00016438,2]
[329844988,1718742638253,-595.65055958,0.00016438,2]
[329844989,1718742638262,-500.0,0.00016438,2]
[329844990,1718742638272,-500.0,0.00016438,2]
[329844991,1718742638281,-500.0,0.00016438,2]
[329844992,1718742638290,-500.0,0.00016438,2]
[329844993,1718742638299,-500.0,0.00016438,2]
[329844994,1718742638309,-500.0,0.00016438,2]
[329844995,1718742638318,-500.0,0.00016438,2]
[329844996,1718742638327,-500.0,0.00016438,2]
[329844997,1718742638335,-500.0,0.00016438,2]
[329844998,1718742638344,-500.0,0.00016438,2]
[329844999,1718742638354,-500.0,0.00016438,2]
[329845000,1718742638364,-501.90102211,0.00016438,2]
[329845001,1718742638373,-500.0,0.00016438,2]
[329845002,1718742638382,-500.0,0.00016438,2]
[329845003,1718742638391,-500.0,0.00016438,2]
[329845004,1718742638401,-500.0,0.00016438,2]
[329845005,1718742638410,-500.0,0.00016438,2]
[329845006,1718742638421,-500.0,0.00016438,2]
[329845007,1718742638430,-500.0,0.00016438,2]
[329845008,1718742638440,-500.0,0.00016438,2]
[329845009,1718742638450,-504.19629295,0.00016438,2]
[329845010,1718742638460,-500.0,0.00016438,2]
[329845011,1718742638469,-500.0,0.00016438,2]
[329845012,1718742638478,-328.71331336,0.00016438,2]
[329845013,1718742638488,-500.0,0.00016438,2]
[329845014,1718742638498,-500.0,0.00016438,2]
[329845015,1718742638507,-500.0,0.00016438,2]
[329845016,1718742638517,-500.0,0.00016438,2]
[329845017,1718742638527,-500.0,0.00016438,2]
[329845018,1718742638542,-504.21619188,0.00016438,2]
[329845019,1718742638551,-500.0,0.00016438,2]
[329845020,1718742638561,-500.0,0.00016438,2]
[329845021,1718742638571,-500.0,0.00016438,2]
[329845022,1718742638580,-500.0,0.00016438,2]
[329845023,1718742638589,-500.0,0.00016438,2]
[329845024,1718742638598,-250.0,0.00016438,2]
[329845025,1718742638609,-500.0,0.00016438,2]
[329845026,1718742638619,-500.0,0.00016438,2]
[329845027,1718742638628,-500.0,0.00016438,2]
[329845028,1718742638638,-500.0,0.00016438,2]
[329845029,1718742638648,-500.0,0.00016438,2]
[329845030,1718742638658,-351.92546362,0.00016438,2]
[329845031,1718742638667,-500.0,0.00016438,2]
[329845032,1718742638678,-500.0,0.00016438,2]
[329845033,1718742638687,-500.0,0.00016438,2]
[329845034,1718742638698,-500.0,0.00016438,2]
[329845035,1718742638707,-500.0,0.00016438,2]
[329845036,1718742638717,-500.0,0.00016438,2]
[329845037,1718742638726,-500.0,0.00016438,2]
[329845038,1718742638735,-500.0,0.00016438,2]
[329845039,1718742638744,-500.0,0.00016438,2]
[329845040,1718742638754,-500.0,0.00016438,2]
[329845041,1718742638764,-500.0,0.00016438,2]
[329845042,1718742638774,-500.0,0.00016438,2]
[329845043,1718742638783,-500.0,0.00016438,2]
[329845044,1718742638792,-500.0,0.00016438,2]
[329845045,1718742638802,-500.0,0.00016438,2]
[329845046,1718742638811,-500.0,0.00016438,2]
[329845047,1718742638821,-500.0,0.00016438,2]
[329845048,1718742638830,-500.0,0.00016438,2]
[329845049,1718742638840,-500.0,0.00016438,2]
[329845050,1718742638849,-500.0,0.00016438,2]
[329845051,1718742638859,-500.62738533,0.00016438,2]
[329845052,1718742638868,-500.0,0.00016438,2]
[329845053,1718742638878,-500.0,0.00016438,2]
[329845054,1718742638888,-504.58618958,0.00016438,2]
[329845055,1718742638897,-500.0,0.00016438,2]
[329845056,1718742638906,-500.0,0.00016438,2]
[329845057,1718742638916,-489.4618939,0.00016438,2]
[329845058,1718742638927,-500.0,0.00016438,2]
[329845059,1718742638936,-500.0,0.00016438,2]
[329845060,1718742638945,-633.62757742,0.00016438,2]
[329845061,1718742638955,-500.0,0.00016438,2]
[329845062,1718742638965,-500.0,0.00016438,2]
[329845063,1718742638974,-500.0,0.00016438,2]
[329845064,1718742638983,-500.0,0.00016438,2]
[329845065,1718742638993,-500.0,0.00016438,2]
[329845066,1718742639002,-500.0,0.00016438,2]
[329845067,1718742639012,-500.0,0.00016438,2]
[329845068,1718742639022,-500.0,0.00016438,2]
[329845069,1718742639031,-500.0,0.00016438,2]
[329845070,1718742639042,-500.0,0.00016438,2]
[329845071,1718742639052,-500.0,0.00016438,2]
[329845072,1718742639062,-500.0,0.00016438,2]
[329845073,1718742639072,-500.0,0.00016438,2]
[329845074,1718742639082,-500.0,0.00016438,2]
[329845075,1718742639092,-500.0,0.00016438,2]
[329845076,1718742639102,-500.0,0.00016438,2]
[329845077,1718742639112,-502.93715686,0.00016438,2]
[329845078,1718742639122,-500.0,0.00016438,2]
[329845079,1718742639132,-500.0,0.00016438,2]
[329845080,1718742639142,-500.0,0.00016438,2]
[329845081,1718742639151,-500.0,0.00016438,2]
[329845082,1718742639161,-500.0,0.00016438,2]
[329845083,1718742639171,-500.0,0.00016438,2]
[329845084,1718742639181,-298.09295366,0.00016438,2]
[329845085,1718742639191,-500.0,0.00016438,2]
[329845086,1718742639200,-500.0,0.00016438,2]
[329845087,1718742639210,-2648.88,0.00016438,2]
[329845088,1718742639220,-500.0,0.00016438,2]
[329845089,1718742639229,-500.0,0.00016438,2]
[329845090,1718742639240,-500.0,0.00016438,2]
[329845091,1718742639250,-520.39,0.00016438,2]
[329845092,1718742639260,-500.0,0.00016438,2]
[329845093,1718742639270,-500.0,0.00016438,2]
[329845094,1718742639280,-500.0,0.00016438,2]
[329845095,1718742639290,-928.54,0.00016438,2]
[329845096,1718742639300,-500.0,0.00016438,2]
[329845097,1718742639310,-500.0,0.00016438,2]
[329845098,1718742639321,-500.0,0.00016438,2]
[329845099,1718742639331,-500.0,0.00016438,2]
[329845100,1718742639341,-500.0,0.00016438,2]
[329845101,1718742639351,-500.0,0.00016438,2]
[329845102,1718742639361,-500.0,0.00016438,2]
[329845103,1718742639371,-500.0,0.00016438,2]
[329845104,1718742639381,-500.0,0.00016438,2]
[329845105,1718742639392,-500.0,0.00016438,2]
[329845106,1718742639402,-500.0,0.00016438,2]
[329845107,1718742639412,-500.0,0.00016438,2]
[329845108,1718742639423,-500.0,0.00016438,2]
[329845109,1718742639432,-500.0,0.00016438,2]
[329845110,1718742639442,-500.0,0.00016438,2]
[329845111,1718742639452,-500.0,0.00016438,2]
[329845112,1718742639462,-5325.71,0.00016438,2]
[329845113,1718742639473,-500.0,0.00016438,2]
[329845114,1718742639483,-500.0,0.00016438,2]
[329845115,1718742639494,-500.0,0.00016438,2]
[329845116,1718742639504,-500.0,0.00016438,2]
[329845117,1718742639514,-500.0,0.00016438,2]
[329845118,1718742639527,-402.72300203,0.00016438,2]
[329845119,1718742639538,-500.0,0.00016438,2]
[329845120,1718742639548,-500.0,0.00016438,2]
[329845121,1718742639559,-500.0,0.00016438,2]
[329845122,1718742639571,-500.0,0.00016438,2]
[329845123,1718742639580,-500.0,0.00016438,2]
[329845124,1718742639591,-500.0,0.00016438,2]
[329845125,1718742639600,-500.0,0.00016438,2]
[329845126,1718742639611,-500.0,0.00016438,2]
[329845127,1718742639620,-584.80523407,0.00016438,2]
[329845128,1718742639630,-500.0,0.00016438,2]
[329845129,1718742639639,-483.14144495,0.00016438,2]
[329845130,1718742639649,-500.0,0.00016438,2]
[329845131,1718742639659,-1248.09,0.00016438,2]
[329845133,1718742639669,-500.0,0.00016438,2]
[329845134,1718742639679,-500.0,0.00016438,2]
[329845135,1718742639689,-407.21532953,0.00016438,2]
[329845136,1718742639699,-500.0,0.00016438,2]
[329845137,1718742639709,-561.90091109,0.00016438,2]
[329845138,1718742639718,-632.25604265,0.00016438,2]
[329845139,1718742639728,-503.83120065,0.00016438,2]
[329845141,1718742639738,-501.57820878,0.00016438,2]
[329845142,1718742639748,-501.58446317,0.00016438,2]
[329845144,1718742639757,-201.02191296,0.00016438,2]
[329845146,1718742639767,-500.0,0.00016438,2]
[329845148,1718742639776,-500.0,0.00016438,2]
[329845149,1718742639786,-500.0,0.00016438,2]
[329845150,1718742639797,-639.53063006,0.00016438,2]
[329845151,1718742639807,-500.0,0.00016438,2]
[329845153,1718742639817,-500.0,0.00016438,2]
[329845154,1718742639827,-500.0,0.00016438,2]
[329845155,1718742639836,-500.0,0.00016438,2]
[329845156,1718742639846,-500.0,0.00016438,2]
[329845157,1718742639856,-500.0,0.00016438,2]
[329845158,1718742639865,-500.0,0.00016438,2]
[329845159,1718742639875,-1533.6,0.00016438,2]
[329845160,1718742639885,-318.88559653,0.00016438,2]
[329845161,1718742639896,-509.10602516,0.00016438,2]
[329845162,1718742639906,-500.0,0.00016438,2]
[329845163,1718742639915,-442.90180073,0.00016438,2]
[329845164,1718742639926,-500.0,0.00016438,2]
[329845165,1718742639936,-500.0,0.00016438,2]
[329845166,1718742639946,-500.0,0.00016438,2]
[329845167,1718742639956,-500.0,0.00016438,2]
[329845168,1718742639966,-500.0,0.00016438,2]
[329845169,1718742639975,-500.0,0.00016438,2]
[329845170,1718742639985,-500.0,0.00016438,2]
[329845171,1718742639995,-500.0,0.00016438,2]
[329845172,1718742640005,-500.0,0.00016438,2]
[329845174,1718742640015,-587.12,0.00016438,2]
[329845176,1718742640024,-500.0,0.00016438,2]
[329845177,1718742640034,-500.0,0.00016438,2]
[329845178,1718742640043,-500.0,0.00016438,2]
[329845179,1718742640052,-505.38738469,0.00016438,2]
[329845180,1718742640062,-500.0,0.00016438,2]
[329845181,1718742640072,-500.0,0.00016438,2]
[329845182,1718742640083,-674.72,0.00016438,2]
[329845183,1718742640092,-500.0,0.00016438,2]
[329845184,1718742640101,-500.0,0.00016438,2]
[329845185,1718742640112,-500.0,0.00016438,2]
[329845186,1718742640122,-500.0,0.00016438,2]
[329845187,1718742640131,-502.80198621,0.00016438,2]
[329845188,1718742640141,-534.7417435,0.00016438,2]
[329845189,1718742640151,-3868.69,0.00016438,2]
[329845190,1718742640161,-500.0,0.00016712,2]
[329845191,1718742640171,-500.0,0.00016712,2]
[329845192,1718742640180,-500.0,0.00016712,2]
[329845193,1718742640190,-500.0,0.00016712,2]
[329845194,1718742640200,-500.0,0.00016712,2]
[329845195,1718742640210,-500.0,0.00016712,2]
[329845196,1718742640221,-500.0,0.00016712,2]
[329845197,1718742640231,-500.0,0.00016712,2]
[329845199,1718742640242,-500.0,0.00016712,2]
[329845201,1718742640251,-552.32294094,0.00016712,2]
[329845202,1718742640262,-500.0,0.00016712,2]
[329845203,1718742640271,-500.0,0.00016712,2]
[329845204,1718742640281,-500.0,0.00016712,2]
[329845205,1718742640290,-500.0,0.00016712,2]
[329845206,1718742640301,-500.0,0.00016712,2]
[329845207,1718742640311,-500.0,0.00016712,2]
[329845208,1718742640320,-381.56976852,0.00016712,2]
[329845209,1718742640329,-500.0,0.00016712,2]
[329845210,1718742640339,-500.0,0.00016712,2]
[329845211,1718742640349,-500.0,0.00016712,2]
[329845212,1718742640360,-500.0,0.00016712,2]
[329845213,1718742640370,-500.0,0.00016712,2]
[329845214,1718742640380,-500.0,0.00016712,2]
[329845215,1718742640391,-500.0,0.00016712,2]
[329845216,1718742640498,-500.0,0.00016712,2]
[329845217,1718742640508,-500.0,0.00016712,2]
[329845218,1718742640518,-500.0,0.00016712,2]
[329845219,1718742640529,-2648.88,0.00016712,2]
[329845220,1718742640542,-222.71144971,0.00016712,2]
[329845221,1718742640552,-500.0,0.00016712,2]
[329845222,1718742640562,-928.54,0.00016712,2]
[329845223,1718742640572,-500.0,0.00016712,2]
[329845224,1718742640583,-500.0,0.00016712,2]
[329845225,1718742640593,-500.0,0.00016712,2]
[329845226,1718742640603,-500.0,0.00016712,2]
[329845227,1718742640614,-500.0,0.00016712,2]
[329845228,1718742640624,-500.0,0.00016712,2]
[329845229,1718742640633,-5325.71,0.00016712,2]
[329845230,1718742640643,-500.0,0.00016712,2]
[329845231,1718742640653,-500.0,0.00016712,2]
[329845232,1718742640663,-500.0,0.00016712,2]
[329845233,1718742640673,-500.0,0.00016712,2]
[329845234,1718742640683,-500.0,0.00016712,2]
[329845235,1718742640694,-1248.09,0.00016712,2]
[329845236,1718742640704,-500.0,0.00016712,2]
[329845237,1718742640713,-500.0,0.00016712,2]
[329845238,1718742640723,-500.0,0.00016712,2]
[329845239,1718742640733,-500.0,0.00016712,2]
[329845240,1718742640743,-500.0,0.00016712,2]
[329845241,1718742640753,-1533.6,0.00016712,2]
[329845242,1718742640762,-500.0,0.00016712,2]
[329845243,1718742640772,-500.0,0.00016712,2]
[329845244,1718742640782,-500.0,0.00016712,2]
[329845245,1718742640792,-500.0,0.00016712,2]
[329845246,1718742640802,-587.12,0.00016712,2]
[329845247,1718742640813,-500.0,0.00016712,2]
[329845248,1718742640823,-500.0,0.00016712,2]
[329845249,1718742640832,-674.72,0.00016712,2]
[329845250,1718742640842,-271.5989402,0.00016712,2]
[329845251,1718742640851,-3868.69,0.00016712,2]
[329845252,1718742640861,-284.87341223,0.00016749,2]
[329845253,1718742640872,-500.0,0.00016985,2]
[329845254,1718742640881,-500.0,0.00016985,2]
[329845255,1718742640891,-1518.3040988,0.00016986,15]
[329845256,1718742640910,-22.12634755,0.00016986,15]
[329845257,1718742640920,-566.9,0.00016986,2]
[329845258,1718742640930,-500.0,0.00016986,2]
[329845259,1718742640939,-500.0,0.00016986,2]
[329845260,1718742640948,-500.0,0.00016986,2]
[329845261,1718742640958,-500.0,0.00016986,2]
[329845262,1718742640968,-500.0,0.00016986,2]
[329845263,1718742640978,-500.0,0.00016986,2]
[329845264,1718742640987,-500.0,0.00016986,2]
[329845265,1718742640996,-500.0,0.00016986,2]
[329845266,1718742641006,-500.0,0.00016986,2]
[329845267,1718742641016,-500.0,0.00016986,2]
[329845268,1718742641026,-500.0,0.00016986,2]
[329845269,1718742641035,-500.0,0.00016986,2]
[329845270,1718742641045,-500.0,0.00016986,2]
[329845271,1718742641055,-500.0,0.00016986,2]
[329845272,1718742641064,-500.0,0.00016986,2]
[329845273,1718742641074,-500.0,0.00016986,2]
[329845274,1718742641083,-500.0,0.00016986,2]
[329845275,1718742641093,-500.0,0.00016986,2]
[329845276,1718742641102,-2648.88,0.00016986,2]
[329845277,1718742641112,-928.54,0.00016986,2]
[329845278,1718742641122,-500.0,0.00016986,2]
[329845279,1718742641131,-500.0,0.00016986,2]
[329845280,1718742641141,-500.0,0.00016986,2]
[329845281,1718742641150,-500.0,0.00016986,2]
[329845282,1718742641160,-500.0,0.00016986,2]
[329845283,1718742641170,-500.0,0.00016986,2]
[329845284,1718742641180,-5325.71,0.00016986,2]
[329845285,1718742641190,-500.0,0.00016986,2]
[329845286,1718742641199,-500.0,0.00016986,2]
[329845287,1718742641208,-500.0,0.00016986,2]
[329845288,1718742641218,-500.0,0.00016986,2]
[329845289,1718742641228,-500.0,0.00016986,2]
[329845290,1718742641237,-1248.09,0.00016986,2]
[329845291,1718742641247,-500.0,0.00016986,2]
[329845292,1718742641256,-500.0,0.00016986,2]
[329845293,1718742641266,-500.0,0.00016986,2]
[329845294,1718742641276,-491.31164901,0.00016986,2]
[329845295,1718742641288,-8.68835099,0.00016986,2]
[329845296,1718742641298,-500.0,0.00016986,2]
[329845297,1718742641307,-1533.6,0.00016986,2]
[329845298,1718742641317,-500.0,0.00016986,2]
[329845299,1718742641326,-500.0,0.00016986,2]
[329845300,1718742641335,-500.0,0.00016986,2]
[329845301,1718742641345,-500.0,0.00016986,2]
[329845302,1718742641354,-587.12,0.00016986,2]
[329845303,1718742641363,-234.42,0.00016986,2]
[329845304,1718742641373,-363.71289774,0.00016986,2]
[329845305,1718742641385,-136.28710226,0.00016986,2]
[329845306,1718742641395,-674.72,0.00016986,2]
[329845307,1718742641404,-312.9237624,0.00016986,2]